fUST/lending_fUST_20240327
["ID","MTS","AMOUNT","RATE_DAILY","PERIOD"]
[320720351,1711532004859,-2384.27,0.00019178,2]
[320720352,1711532004882,-500.0,0.00019178,2]
[320720353,1711532004907,-500.0,0.00019178,2]
[320720354,1711532004932,-1605.26,0.00019178,2]
[320720355,1711532004955,-500.0,0.00019178,2]
[320720356,1711532004977,-500.0,0.00019178,2]
[320720357,1711532005001,-500.0,0.00019178,2]
[320720358,1711532005029,-6358.69,0.00019178,2]
[320720359,1711532005053,-500.0,0.00019178,2]
[320720360,1711532005080,-500.0,0.00019178,2]
[320720361,1711532005101,-500.0,0.00019178,2]
[320720362,1711532005126,-500.0,0.00019178,2]
[320720363,1711532005150,-500.0,0.00019178,2]
[320720364,1711532005174,-2967.18,0.00019178,2]
[320720365,1711532005202,-500.0,0.00019178,2]
[320720366,1711532005226,-500.0,0.00019178,2]
[320720367,1711532005249,-500.0,0.00019178,2]
[320720368,1711532005271,-809.36,0.00019178,2]
[320720369,1711532005294,-763.94,0.00019178,2]
[320720370,1711532005316,-500.0,0.00019178,2]
[320720371,1711532005340,-1211.66,0.00019178,2]
[320720372,1711532005364,-1677.1,0.00019178,2]
[320720373,1711532005388,-500.0,0.00019178,2]
[320720374,1711532005412,-20401.53,0.00019178,2]
[320720375,1711532005437,-500.0,0.00019178,2]
[320720376,1711532005460,-500.0,0.00019178,2]
[320720377,1711532005485,-500.0,0.00019178,2]
[320720378,1711532005507,-500.0,0.00019178,2]
[320720379,1711532005532,-500.0,0.00019178,2]
[320720380,1711532005554,-500.0,0.00019178,2]
[320720381,1711532005576,-18595.42,0.00019178,2]
[320720382,1711532005598,-688.22,0.00019178,2]
[320720383,1711532005619,-500.0,0.00019178,2]
[320720384,1711532005643,-3758.63,0.00019178,2]
[320720385,1711532005666,-3074.05,0.00019178,2]
[320720386,1711532005690,-404.34,0.00019178,2]
[320720387,1711532005728,-500.0,0.00019178,2]
[320720388,1711532005756,-2901.36,0.00019178,2]
[320720389,1711532005787,-1161.11,0.00019178,2]
[320720390,1711532005815,-1493.57,0.00019178,2]
[320720391,1711532005843,-500.0,0.00019178,2]
[320720392,1711532005867,-500.0,0.00019178,2]
[320720393,1711532005890,-3743.65,0.00019178,2]
[320720394,1711532005914,-500.0,0.00019178,2]
[320720395,1711532005937,-1345.01,0.00019178,2]
[320720396,1711532005961,-500.0,0.00019178,2]
[320720397,1711532005985,-500.0,0.00019178,2]
[320720398,1711532006008,-167.658928,0.00019178,2]
[320720399,1711532006030,-2811.53462742,0.00019919,2]
[320720400,1711532006056,-156.02689931,0.0002,2]
[320720401,1711532006080,-684.30913271,0.0002,2]
[320720402,1711532006104,-156.44012682,0.0002,2]
[320720403,1711532014646,10684.71370362,0.00019074,2]
[320720404,1711532014876,500.0,0.00019178,2]
[320720405,1711532021808,6093.75,0.00019178,2]
[320720406,1711532028164,500.0,0.00019178,2]
[320720407,1711532033311,500.0,0.00019178,2]
[320720408,1711532037600,1538.37,0.00019178,2]
[320720409,1711532038806,500.0,0.00019178,2]
[320720411,1711532056813,2843.54,0.00019178,2]
[320720412,1711532058425,500.0,0.00019178,2]
[320720413,1711532064181,500.0,0.00019178,2]
[320720414,1711532076448,500.0,0.00019178,2]
[320720415,1711532079950,500.0,0.00019178,2]
[320720416,1711532080256,500.0,0.00019178,2]
[320720417,1711532081291,503.95,0.00019178,2]
[320720418,1711532081377,500.0,0.00019178,2]
[320720419,1711532083384,500.0,0.00019178,2]
[320720420,1711532093371,1607.22,0.00019178,2]
[320720421,1711532098768,500.0,0.00019178,2]
[320720422,1711532101851,500.0,0.00019178,2]
[320720423,1711532107625,500.0,0.00019178,2]
[320720424,1711532110882,500.0,0.00019178,2]
[320720425,1711532111840,500.0,0.00019178,2]
[320720426,1711532114305,500.0,0.00019178,2]
[320720427,1711532118490,500.0,0.00019178,2]
[320720428,1711532120013,500.0,0.00019178,2]
[320720429,1711532123222,732.11,0.00019178,2]
[320720430,1711532128377,2945.97,0.00019178,2]
[320720431,1711532133900,642.12,0.00019178,2]
[320720432,1711532173056,174.59960487,0.000189,2]
[320720475,1711533032530,-2074.24478617,0.00020507,2]
[320720476,1711533032540,-780.7394247,0.00020508,2]
[320720478,1711533032549,-156.44012682,0.00020509,2]
[320720480,1711533032558,-4670.9144391,0.00020514,2]
[320720609,1711533043755,-173.00776827,0.00020514,2]
[320720610,1711533043764,-243.144153,0.0002052,2]
[320720611,1711533043773,-170.9196253,0.00021543,2]
[320720612,1711533043782,-1610.84561279,0.00021641,2]
[320720613,1711533043792,-155.29708054,0.00021641,2]
[320720614,1711533043803,-204.86050653,0.00021641,2]
[320720615,1711533043812,-686.05454832,0.00021641,2]
[320720616,1711533043822,-300.0,0.00021642,2]
[320720617,1711533043832,-500.0,0.00021643,2]
[320720618,1711533043842,-500.0,0.00021643,2]
[320720619,1711533043851,-500.0,0.00021643,2]
[320720620,1711533043861,-500.0,0.00021643,2]
[320720621,1711533043870,-1089.84,0.00021643,2]
[320720622,1711533043879,-214.97448684,0.00021643,2]
[320720644,1711533060948,377.01038357,0.000189,2]
[320720648,1711533076700,1808.20445228,0.00019543,2]
[320720741,1711533377952,1205.46963486,0.00019543,2]
[320720791,1711533679363,803.64642324,0.00019543,2]
[320720838,1711533980577,535.76428216,0.000189,2]
[320720939,1711534232685,-156.44012682,0.00020492,2]
[320720941,1711534232695,-2074.24478617,0.00020493,2]
[320720943,1711534232705,-167.658928,0.00020496,2]
[320720945,1711534232714,-295.047051,0.00020627,2]
[320720947,1711534232723,-780.7394247,0.00021642,2]
[320720949,1711534232732,-1044.43,0.00021697,2]
[320720951,1711534232741,-500.0,0.00021697,2]
[320720953,1711534232751,-500.0,0.00021697,2]
[320720955,1711534232762,-500.0,0.00021697,2]
[320720957,1711534232771,-29.72149485,0.00021697,2]
[320721189,1711534238730,-301.39769242,0.00021697,2]
[320721625,1711534243998,-168.88081273,0.00021697,2]
[320721626,1711534244008,-500.0,0.00021697,2]
[320721627,1711534244017,-500.0,0.00021697,2]
[320721628,1711534244026,-500.0,0.00021697,2]
[320721629,1711534244035,-500.0,0.00021697,2]
[320721630,1711534244044,-173.02666576,0.00021697,2]
[320721631,1711534244052,-12.20190441,0.00021697,2]
[320721632,1711534244064,-487.79809559,0.00021697,2]
[320721633,1711534244074,-342.19416024,0.00021697,2]
[320721708,1711534282191,426.44989901,0.00019597,2]
[320721725,1711534583324,284.29993267,0.00019597,2]
[320721727,1711534884696,189.53328845,0.00019597,2]
[320722760,1711535431837,-156.44012682,0.00020756,2]
[320722762,1711535431847,-2074.24478617,0.00020756,2]
[320722764,1711535431857,-3511.25418873,0.00020757,2]
[320722766,1711535431866,-295.047051,0.00020783,2]
[320722768,1711535431875,-225.773,0.0002104,2]
[320722770,1711535431884,-225.773,0.0002104,2]
[320722772,1711535431893,-225.773,0.0002104,2]
[320722774,1711535431903,-225.773,0.0002104,2]
[320722776,1711535431912,-225.773,0.0002104,2]
[320722778,1711535431921,-823.697,0.00021479,2]
[320722780,1711535431930,-269.36283954,0.00021479,2]
[320723422,1711535443087,-554.33516046,0.00021479,2]
[320723424,1711535443097,-823.698,0.00021479,2]
[320723426,1711535443106,-823.698,0.00021479,2]
[320723428,1711535443116,-823.698,0.00021479,2]
[320723430,1711535443128,-1007.42339146,0.00021693,2]
[320723432,1711535443137,-1428.25538336,0.00021698,2]
[320723434,1711535443152,-1385.51340934,0.00021698,2]
[320723436,1711535443164,-299.80101646,0.00021782,2]
[320723438,1711535443173,-283.9646439,0.00021811,2]
[320723440,1711535443183,-3762.16793225,0.00021898,2]
[320724439,1711535930748,10000.0,0.0002,2]
[320724440,1711535961425,201.48,0.0002,2]
[320724694,1711536640103,-156.44012682,0.00020573,2]
[320724696,1711536640113,-2074.24478617,0.00020574,2]
[320724698,1711536640122,-441.757543,0.00020575,2]
[320724700,1711536640132,-167.658928,0.00020634,2]
[320724702,1711536640141,-2580.88911618,0.00020687,2]
[320724705,1711536640159,-1176.17247542,0.00020687,2]
[320724707,1711536640169,-763.316197,0.00020718,2]
[320724709,1711536640179,-170.91962529,0.00021798,2]
[320724711,1711536640188,-19072.52430496,0.00021898,2]
[320724713,1711536640198,-5033.46662895,0.00021898,2]
[320724715,1711536640207,-414.196779,0.000219,9]
[320724717,1711536640216,-153.0,0.000219,2]
[320724719,1711536640226,-19550.20499243,0.00021909,2]
[320724721,1711536640236,-500.0,0.00021909,2]
[320724723,1711536640245,-701.6,0.00021909,2]
[320724725,1711536640254,-775.63,0.00021909,2]
[320724728,1711536640264,-1161.18,0.00021909,2]
[320724731,1711536640275,-500.0,0.00021909,2]
[320724734,1711536640285,-1112.73,0.00021909,2]
[320724736,1711536640295,-2780.47,0.00021909,2]
[320724738,1711536640305,-500.0,0.00021909,2]
[320724740,1711536640316,-1288.96,0.00021909,2]
[320724742,1711536640326,-322.14859081,0.00021909,2]
[320724744,1711536640335,-1474.27,0.00021909,2]
[320724746,1711536640345,-5839.84,0.00021909,2]
[320724748,1711536640355,-500.0,0.00021909,2]
[320724750,1711536640364,-500.0,0.00021909,2]
[320724752,1711536640375,-864.87502059,0.0002191,2]
[320724754,1711536640385,-500.0,0.0002191,2]
[320724756,1711536640395,-500.0,0.0002191,2]
[320724758,1711536640406,-500.0,0.0002191,2]
[320724760,1711536640415,-289.06858071,0.0002191,2]
[320724762,1711536640425,-519.24,0.0002191,2]
[320724764,1711536640436,-500.0,0.0002191,2]
[320724766,1711536640446,-500.0,0.0002191,2]
[320724768,1711536640456,-500.45,0.0002191,2]
[320724770,1711536640466,-500.0,0.0002191,2]
[320724772,1711536640476,-500.0,0.0002191,2]
[320724774,1711536640489,-500.0,0.0002191,2]
[320724776,1711536640500,-500.0,0.0002191,2]
[320724778,1711536640513,-500.0,0.0002191,2]
[320724781,1711536640523,-500.0,0.0002191,2]
[320724783,1711536640533,-500.0,0.0002191,2]
[320724785,1711536640544,-1431.33,0.0002191,2]
[320724786,1711536640553,-500.0,0.0002191,2]
[320724788,1711536640565,-500.0,0.0002191,2]
[320724790,1711536640575,-500.0,0.0002191,2]
[320724793,1711536640585,-500.0,0.0002191,2]
[320724795,1711536640595,-500.0,0.0002191,2]
[320724797,1711536640605,-466.25420549,0.0002191,2]
[320724799,1711536640614,-500.0,0.0002191,2]
[320724801,1711536640623,-500.0,0.0002191,2]
[320724802,1711536640633,-500.0,0.0002191,2]
[320724804,1711536640643,-500.0,0.0002191,2]
[320724807,1711536640653,-500.0,0.0002191,2]
[320724808,1711536640662,-500.0,0.0002191,2]
[320724810,1711536640671,-500.0,0.0002191,2]
[320724812,1711536640682,-500.0,0.0002191,2]
[320724814,1711536640691,-615.37,0.0002191,2]
[320724816,1711536640700,-500.0,0.0002191,2]
[320724819,1711536640711,-500.0,0.0002191,2]
[320724821,1711536640723,-2725.06,0.0002191,2]
[320724822,1711536640733,-500.0,0.0002191,2]
[320724824,1711536640743,-500.0,0.0002191,2]
[320724826,1711536640754,-500.0,0.0002191,2]
[320724828,1711536640765,-500.0,0.0002191,2]
[320724830,1711536640774,-500.0,0.0002191,2]
[320724833,1711536640784,-500.0,0.0002191,2]
[320724835,1711536640794,-1540.26,0.0002191,2]
[320724837,1711536640803,-500.0,0.0002191,2]
[320724839,1711536640813,-384.07299523,0.0002191,2]
[320724840,1711536640823,-795.64,0.0002191,2]
[320724842,1711536640833,-500.0,0.0002191,2]
[320724845,1711536640846,-500.0,0.0002191,2]
[320724847,1711536640855,-1415.42,0.0002191,2]
[320724848,1711536640865,-500.0,0.0002191,2]
[320724850,1711536640875,-20267.13,0.0002191,2]
[320724864,1711536641004,-2823.22,0.0002191,2]
[320724867,1711536641026,-500.0,0.0002191,2]
[320724868,1711536641036,-1273.73,0.0002191,2]
[320724871,1711536641045,-500.0,0.0002191,2]
[320724872,1711536641056,-10061.03,0.0002191,2]
[320724874,1711536641066,-500.0,0.0002191,2]
[320724876,1711536641076,-3602.02,0.0002191,2]
[320724878,1711536641086,-500.0,0.0002191,2]
[320724880,1711536641096,-500.0,0.0002191,2]
[320724882,1711536641105,-500.0,0.0002191,2]
[320724884,1711536641115,-500.0,0.0002191,2]
[320724887,1711536641125,-500.0,0.0002191,2]
[320724889,1711536641136,-3587.66,0.0002191,2]
[320724891,1711536641145,-247.53960412,0.0002191,2]
[320724969,1711536643371,-252.46039588,0.0002191,2]
[320724971,1711536643381,-740.91,0.0002191,2]
[320724973,1711536643391,-2284.92,0.0002191,2]
[320724974,1711536643400,-157.53403839,0.0002191,2]
[320724978,1711536643684,-342.46596161,0.0002191,2]
[320724979,1711536643694,-212.1258471,0.00021911,2]
[320724980,1711536643703,-500.0,0.00021911,2]
[320724981,1711536643713,-707.78836053,0.00021915,2]
[320724982,1711536643722,-282.16230773,0.00021915,2]
[320724983,1711536643732,-784.41517025,0.00021915,2]
[320724984,1711536643741,-271.67831306,0.00021915,2]
[320724985,1711536643751,-352.68467098,0.00021915,2]
[320724986,1711536643760,-170.58466675,0.00021916,2]
[320724987,1711536643770,-426.25832143,0.00021916,2]
[320724988,1711536643780,-166.666666,0.00021918,2]
[320724989,1711536643789,-3704.91014556,0.00022,2]
[320724990,1711536643798,-157.85211395,0.00022,2]
[320724991,1711536643808,-251.91302101,0.00022,2]
[320724992,1711536643818,-196.0,0.00022,2]
[320724993,1711536643828,-877.79537572,0.0002217,2]
[320724994,1711536643837,-196.0,0.00022192,2]
[320724995,1711536643847,-250.28792147,0.0002231,2]
[320724996,1711536643856,-166.666666,0.00022431,2]
[320724997,1711536643865,-166.666666,0.00022944,2]
[320724998,1711536643874,-464.17065477,0.00023,2]
[320724999,1711536643883,-196.0,0.00023014,2]
[320725000,1711536643893,-166.666666,0.00023456,2]
[320725001,1711536643902,-166.666666,0.00023969,2]
[320725002,1711536643913,-197.0,0.00024164,2]
[320725003,1711536643922,-1748.95310795,0.00024452,2]
[320725004,1711536643932,-166.666666,0.00024482,2]
[320725005,1711536643943,-7762.27330439,0.0002455,2]
[320725006,1711536643953,-680.94497525,0.000246,2]
[320725007,1711536643962,-500.0,0.00024649,2]
[320725008,1711536643971,-701.6,0.00024649,2]
[320725009,1711536643981,-775.63,0.00024649,2]
[320725010,1711536643990,-1161.18,0.00024649,2]
[320725011,1711536644000,-500.0,0.00024649,2]
[320725012,1711536644009,-430.18363604,0.00024649,2]
[320725376,1711537838256,-167.658928,0.00020637,2]
[320725378,1711537838266,-183.326072,0.00020884,2]
[320725641,1711537843476,-37.552699,0.00020884,2]
[320725642,1711537843486,-2074.24478617,0.00021808,2]
[320725643,1711537843496,-175.9274312,0.00021809,2]
[320725644,1711537843505,-500.0,0.00021908,2]
[320725645,1711537843514,-500.0,0.00021908,2]
[320725646,1711537843524,-500.0,0.00021908,2]
[320725647,1711537843533,-500.0,0.00021908,2]
[320725648,1711537843542,-643.14,0.00021908,2]
[320725649,1711537843552,-711.0,0.00021908,2]
[320725650,1711537843562,-1064.41,0.00021908,2]
[320725651,1711537843572,-484.87462554,0.00021908,2]
[320725695,1711537898828,176.35552563,0.00019808,2]
[320725697,1711538079091,6358.0,0.0002,3]
[320725811,1711539038454,-405.54673944,0.00020631,2]
[320726025,1711539040527,-1668.69804673,0.00020631,2]
[320726026,1711539040536,-810.37363213,0.00020632,2]
[320726027,1711539040545,-220.878771,0.00020633,2]
[320726028,1711539040555,-200.0,0.00020633,2]
[320726029,1711539040564,-175.9274312,0.00021808,2]
[320726030,1711539040573,-500.0,0.00021907,2]
[320726031,1711539040582,-500.0,0.00021907,2]
[320726032,1711539040590,-500.0,0.00021907,2]
[320726033,1711539040600,-500.0,0.00021907,2]
[320726034,1711539040609,-500.0,0.00021907,2]
[320726035,1711539040617,-589.73,0.00021907,2]
[320726036,1711539040626,-500.0,0.00021907,2]
[320726037,1711539040635,-500.0,0.00021907,2]
[320726039,1711539040644,-500.0,0.00021907,2]
[320726041,1711539040654,-1455.88,0.00021907,2]
[320726043,1711539040664,-500.0,0.00021907,2]
[320726044,1711539040672,-652.97,0.00021907,2]
[320726046,1711539040681,-500.0,0.00021907,2]
[320726048,1711539040690,-616.34,0.00021907,2]
[320726050,1711539040699,-369.85357767,0.00021907,2]
[320726052,1711539040709,-500.0,0.00021907,2]
[320726054,1711539040718,-1356.44,0.00021907,2]
[320726056,1711539040728,-1020.06,0.00021907,2]
[320726058,1711539040737,-500.0,0.00021907,2]
[320726060,1711539040746,-295.21589541,0.00021907,2]
[320726062,1711539040754,-1126.43264586,0.00021907,2]
[320726371,1711539043767,-94.22735414,0.00021907,2]
[320726373,1711539043777,-1868.09292333,0.00021907,2]
[320737710,1711539731006,167.658928,0.00019564,2]
[320737745,1711540179218,9999.999999,0.00025243,30]
[320738114,1711540243840,-2074.24478617,0.00020999,2]
[320738116,1711540243851,-1359.4724159,0.00021,2]
[320738236,1711541109204,5000.0,0.0001,2]
[320738262,1711541214714,201.00336062,0.000189,2]
[320738386,1711541431861,-641.15569708,0.00020879,2]
[320738427,1711541437895,-1433.08908909,0.00020879,2]
[320738429,1711541437907,-8491.9515127,0.0002088,2]
[320738455,1711541443381,-774.9224042,0.0002088,2]
[320738456,1711541443392,-3522.18730212,0.00021,2]
[320738457,1711541443403,-300.59778914,0.00021,2]
[320738471,1711541516397,184.00224041,0.000189,2]
[320738626,1711542632142,-167.658928,0.00020631,2]
[320738628,1711542632151,-12610.6115187,0.00020905,2]
[320738631,1711542632161,-508.29465757,0.00021,2]
[320738708,1711542643327,-1305.00272346,0.00021,2]
[320738709,1711542643338,-175.9274312,0.00021804,2]
[320738710,1711542643347,-200.29991104,0.00021903,2]
[320738711,1711542643357,-1237.40385904,0.00021903,2]
[320738712,1711542643366,-591.56196874,0.00021903,2]
[320738713,1711542643388,-92.22803126,0.00021903,2]
[320738714,1711542643398,-500.0,0.00021903,2]
[320738715,1711542643408,-137.60033262,0.00021903,2]
[320739126,1711543722324,761.17766639,0.00022222,120]
[320739168,1711543765915,167.658928,0.00020634,2]
[320739509,1711543840299,-199.20666754,0.00021803,2]
[320739511,1711543840310,-264.26939875,0.00021902,7]
[320739513,1711543840320,-653.87993363,0.00021902,2]
[320739519,1711543840366,-1.42006637,0.00021902,2]
[320739521,1711543840375,-1016.18,0.00021902,2]
[320739523,1711543840384,-485.66649933,0.00021902,2]
[320739869,1711543843525,-14.33350067,0.00021902,2]
[320739872,1711543843535,-617.46,0.00021902,2]
[320739873,1711543843544,-1083.81,0.00021902,2]
[320739875,1711543843554,-500.0,0.00021902,2]
[320739877,1711543843564,-196.94577252,0.00021902,2]
[320747646,1711544648856,199.45,0.000215,2]
[320747673,1711544898089,415.55300892,0.000215,2]
[320747677,1711544924277,293.59375949,0.000215,2]
[320747678,1711544955885,208.31834914,0.000194,2]
[320747681,1711545017335,773.72097021,0.00021,2]
[320747724,1711545032824,-194.55082028,0.00021802,2]
[320747727,1711545032835,-200.29991104,0.00021901,2]
[320747730,1711545032846,-1237.40385904,0.00021901,2]
[320747732,1711545032859,-500.0,0.00021901,2]
[320747734,1711545032869,-401.36967305,0.00021901,2]
[320747737,1711545032880,-500.0,0.00021901,2]
[320747739,1711545032890,-500.0,0.00021901,2]
[320747741,1711545032900,-500.0,0.00021901,2]
[320747743,1711545032910,-500.0,0.00021901,2]
[320747745,1711545032920,-1412.84,0.00021901,2]
[320747746,1711545032931,-500.0,0.00021901,2]
[320747747,1711545032942,-500.0,0.00021901,2]
[320747748,1711545032952,-500.0,0.00021901,2]
[320747749,1711545032963,-5596.52,0.00021901,2]
[320747750,1711545032973,-500.0,0.00021901,2]
[320747752,1711545032983,-541.6,0.00021901,2]
[320747754,1711545032993,-500.0,0.00021901,2]
[320747755,1711545033004,-500.0,0.00021901,2]
[320747756,1711545033014,-500.0,0.00021901,2]
[320747757,1711545033027,-591.73,0.00021901,2]
[320747758,1711545033038,-1415.42,0.00021901,2]
[320747759,1711545033048,-500.0,0.00021901,2]
[320747760,1711545033058,-652.64,0.00021901,2]
[320747761,1711545033070,-500.0,0.00021901,2]
[320747762,1711545033220,-500.0,0.00021901,2]
[320747763,1711545033245,-973.84,0.00021901,2]
[320747764,1711545033255,-1299.92,0.00021901,2]
[320747765,1711545033264,-609.67,0.00021901,2]
[320747766,1711545033273,-18112.22,0.00021901,2]
[320747767,1711545033282,-2664.62,0.00021901,2]
[320747768,1711545033291,-3451.94,0.00021901,2]
[320747769,1711545033300,-1038.65,0.00021901,2]
[320747770,1711545033309,-1169.8,0.00021901,2]
[320747771,1711545033318,-500.0,0.00021901,2]
[320747772,1711545033328,-500.0,0.00021901,2]
[320747773,1711545033337,-500.0,0.00021901,2]
[320747774,1711545033347,-1235.26,0.00021901,2]
[320747775,1711545033358,-3438.18,0.00021901,2]
[320747776,1711545033367,-500.0,0.00021901,2]
[320747777,1711545033376,-500.0,0.00021902,2]
[320747778,1711545033385,-500.0,0.00021902,2]
[320747779,1711545033394,-500.0,0.00021902,2]
[320747780,1711545033403,-980.06,0.00021902,2]
[320747781,1711545033413,-500.0,0.00021902,2]
[320747782,1711545033422,-500.0,0.00021902,2]
[320747783,1711545033432,-2189.72,0.00021902,2]
[320747784,1711545033441,-19646.76669106,0.00021902,2]
[320747785,1711545033450,-710.03,0.00021902,2]
[320747786,1711545033459,-500.0,0.00021902,2]
[320747787,1711545033468,-500.0,0.00021902,2]
[320747788,1711545033477,-500.0,0.00021902,2]
[320747789,1711545033487,-500.0,0.00021902,2]
[320747790,1711545033496,-500.0,0.00021902,2]
[320747791,1711545033505,-500.0,0.00021902,2]
[320747792,1711545033514,-500.0,0.00021902,2]
[320747793,1711545033523,-500.0,0.00021902,2]
[320747794,1711545033532,-500.0,0.00021902,2]
[320747795,1711545033541,-1371.7,0.00021902,2]
[320747796,1711545033552,-500.0,0.00021902,2]
[320747797,1711545033561,-500.0,0.00021902,2]
[320747798,1711545033571,-500.0,0.00021902,2]
[320747799,1711545033580,-500.0,0.00021902,2]
[320747800,1711545033589,-500.0,0.00021902,2]
[320747801,1711545033598,-500.0,0.00021902,2]
[320747802,1711545033610,-762.49,0.00021902,2]
[320747803,1711545033620,-500.0,0.00021902,2]
[320747804,1711545033629,-500.0,0.00021902,2]
[320747805,1711545033639,-500.0,0.00021902,2]
[320747806,1711545033648,-500.0,0.00021902,2]
[320747807,1711545033657,-2611.52,0.00021902,2]
[320747808,1711545033666,-2705.59,0.00021902,2]
[320747809,1711545033675,-19422.66,0.00021902,2]
[320747810,1711545033684,-500.0,0.00021902,2]
[320747811,1711545033694,-500.0,0.00021903,2]
[320747812,1711545033703,-300.59778914,0.00021904,2]
[320747813,1711545033712,-1239.27758761,0.00021906,2]
[320747814,1711545033722,-166.666666,0.00021918,2]
[320747815,1711545033732,-3704.91014556,0.00022,2]
[320747816,1711545033741,-157.85211395,0.00022,2]
[320747817,1711545033750,-156.0,0.00022,2]
[320747818,1711545033759,-877.79537572,0.0002217,2]
[320747819,1711545033768,-166.666666,0.00022473,2]
[320747820,1711545033778,-194.55082026,0.00022487,2]
[320747821,1711545033787,-464.17065477,0.00023,2]
[320747822,1711545033796,-156.0,0.00023014,2]
[320747823,1711545033806,-166.666666,0.00023029,2]
[320747824,1711545033815,-194.55082026,0.00023172,2]
[320747825,1711545033824,-166.666666,0.00023584,2]
[320747826,1711545033833,-194.55082026,0.00023856,2]
[320747827,1711545033843,-166.666666,0.00024139,2]
[320747828,1711545033853,-160.0,0.00024164,2]
[320747829,1711545033863,-356.83519894,0.00024316,2]
[320747830,1711545033872,-374.4218734,0.00024319,2]
[320747831,1711545033881,-208.31834914,0.000244,2]
[320747832,1711545033891,-194.55082026,0.00024541,2]
[320747833,1711545033900,-54664.66263822,0.00024543,2]
[320747834,1711545033911,-7762.27330439,0.0002455,2]
[320747835,1711545033920,-356.83519894,0.0002464,2]
[320747836,1711545033929,-500.0,0.00024641,2]
[320747837,1711545033939,-500.0,0.00024641,2]
[320747838,1711545033948,-500.0,0.00024641,2]
[320747839,1711545033957,-500.0,0.00024641,2]
[320747840,1711545033966,-1412.84,0.00024641,2]
[320747841,1711545033976,-500.0,0.00024641,2]
[320747842,1711545033985,-500.0,0.00024641,2]
[320747843,1711545033995,-500.0,0.00024641,2]
[320747844,1711545034008,-5596.52,0.00024641,2]
[320747845,1711545034017,-500.0,0.00024641,2]
[320747846,1711545034027,-541.6,0.00024641,2]
[320747847,1711545034036,-500.0,0.00024641,2]
[320747848,1711545034046,-500.0,0.00024641,2]
[320747849,1711545034055,-500.0,0.00024641,2]
[320747850,1711545034065,-591.73,0.00024641,2]
[320747851,1711545034074,-1415.42,0.00024641,2]
[320747852,1711545034084,-500.0,0.00024641,2]
[320747853,1711545034094,-652.64,0.00024641,2]
[320747854,1711545034105,-500.0,0.00024641,2]
[320747855,1711545034114,-500.0,0.00024641,2]
[320747856,1711545034124,-973.84,0.00024641,2]
[320747857,1711545034133,-1299.92,0.00024641,2]
[320747858,1711545034143,-609.67,0.00024641,2]
[320747859,1711545034153,-18112.22,0.00024641,2]
[320747860,1711545034162,-2664.62,0.00024641,2]
[320747861,1711545034172,-3451.94,0.00024641,2]
[320747862,1711545034182,-1038.65,0.00024641,2]
[320747863,1711545034191,-1169.8,0.00024641,2]
[320747864,1711545034199,-500.0,0.00024641,2]
[320747865,1711545034209,-500.0,0.00024641,2]
[320747866,1711545034218,-500.0,0.00024641,2]
[320747867,1711545034227,-1235.26,0.00024641,2]
[320747868,1711545034237,-3438.18,0.00024641,2]
[320747869,1711545034246,-500.0,0.00024641,2]
[320747870,1711545034255,-500.0,0.00024642,2]
[320747871,1711545034264,-500.0,0.00024642,2]